bitfinex-derivatives/quotes_BTCF0:USTF0_20260107
["timestamp","ask_amount","ask_price","bid_price","bid_amount"]
[1767767932326,0.010791,92729.0,92719.0,0.09149306]
[1767767933430,0.14390056,92735.0,92712.0,0.09679902]
[1767767935128,0.010791,92728.0,92712.0,0.09679902]
[1767767935330,0.14390056,92735.0,92712.0,0.09679902]
[1767767935827,0.01079,92733.0,92712.0,0.09679902]
[1767767936030,0.09172,92740.0,92714.0,0.09679902]
[1767767936627,0.01079,92737.0,92716.0,0.09679902]
[1767767937532,0.01079,92737.0,92717.0,0.010792]
[1767767937737,0.01079,92737.0,92718.0,0.09679902]
[1767767939635,0.05446459,92751.0,92720.0,0.09666688]
[1767767939832,0.01079,92739.0,92721.0,0.09666688]
[1767767940833,0.01079,92737.0,92721.0,0.09666688]
[1767767941136,0.05446459,92748.0,92721.0,0.09666688]
[1767767942236,0.01079,92737.0,92721.0,0.09666688]
[1767767942435,0.05446459,92748.0,92721.0,0.09666688]
[1767767943233,0.01079,92737.0,92721.0,0.09666688]
[1767767943431,0.05446459,92748.0,92721.0,0.09666688]
[1767767943632,0.01079,92739.0,92721.0,0.09666688]
[1767767944529,0.09172,92749.0,92725.0,0.010791]
[1767767944530,0.010789,92747.0,92725.0,0.010791]
[1767767944737,0.1448126,92752.0,92721.0,0.05965596]
[1767767944738,0.05112825,92751.0,92726.0,0.09048009]
[1767767944938,0.14284825,92750.0,92726.0,0.09048009]
[1767767945238,0.05112825,92749.0,92726.0,0.09048009]
[1767767946129,0.010789,92743.0,92726.0,0.09048009]
[1767767946840,0.010789,92741.0,92726.0,0.09048009]
[1767767947137,0.05112825,92749.0,92726.0,0.09048009]
[1767767948141,0.010789,92741.0,92726.0,0.09048009]
[1767767949335,0.010789,92744.0,92726.0,0.09048009]
[1767767950640,0.05112825,92749.0,92726.0,0.09048009]
[1767767950939,0.14732213,92747.0,92726.0,0.09048009]
[1767767951237,0.05112825,92746.0,92726.0,0.09048009]
[1767767953348,0.010789,92741.0,92726.0,0.09048009]
[1767767953536,0.05112825,92746.0,92726.0,0.09048009]
[1767767954252,0.010789,92741.0,92726.0,0.09048009]
[1767767960454,0.01079,92739.0,92721.0,0.05965596]
[1767767960754,0.09619388,92739.0,92720.0,0.09172]
[1767767960955,0.09172,92750.0,92720.0,0.21162429]
[1767767961154,0.09172,92750.0,92720.0,0.27157766]
[1767767962255,0.01079,92738.0,92720.0,0.27157766]
[1767767962460,0.09172,92750.0,92720.0,0.27157766]
[1767767962662,0.05112825,92749.0,92720.0,0.27157766]
[1767767963052,0.01079,92736.0,92720.0,0.27157766]
[1767767963261,0.05112825,92741.0,92720.0,0.27157766]
[1767767963668,0.05112825,92741.0,92721.0,0.12434178]
[1767767964065,0.010789,92739.0,92721.0,0.12434178]
[1767767964563,0.010789,92739.0,92722.0,0.09048009]
[1767767965570,0.010789,92739.0,92722.0,0.12468748]
[1767767965771,0.010789,92739.0,92723.0,0.09048009]
[1767767966466,0.010789,92739.0,92723.0,0.12476048]
[1767767966963,0.010789,92739.0,92724.0,0.09048009]
[1767767968667,0.010789,92739.0,92725.0,0.03378213]
[1767767968972,0.010789,92739.0,92720.0,0.15167337]
[1767767968973,0.05112825,92756.0,92737.0,0.12426222]
[1767767969267,0.09172,92755.0,92739.0,0.12426222]
[1767767969768,0.010788,92749.0,92739.0,0.12426222]
[1767767969966,0.010789,92747.0,92739.0,0.2125538]
[1767767970166,0.010789,92747.0,92739.0,0.17877167]
[1767767971961,0.09172,92753.0,92739.0,0.17877167]
[1767767972162,0.05112825,92757.0,92739.0,0.17877167]
[1767767972472,0.14315224,92756.0,92739.0,0.17877167]
[1767767972669,0.05143224,92755.0,92739.0,0.17877167]
[1767767973172,0.010789,92747.0,92739.0,0.17877167]
[1767767973774,0.010789,92744.0,92739.0,0.17877167]
[1767767974363,0.09172,92753.0,92739.0,0.17877167]
[1767767974868,0.05143224,92752.0,92739.0,5.8e-07]
[1767767975066,0.05143224,92750.0,92727.0,0.09946459]
[1767767975367,0.05143224,92750.0,92727.0,0.13143634]
[1767767976175,0.010789,92743.0,92727.0,0.13143634]
[1767767976680,0.010789,92743.0,92728.0,0.09946459]
[1767767976875,0.05143224,92747.0,92728.0,0.09946459]
[1767767977067,0.01079,92736.0,92728.0,0.18388258]
[1767767977262,0.010789,92740.0,92728.0,0.18388258]
[1767767977468,0.010789,92740.0,92729.0,0.13394563]
[1767767977667,0.010789,92740.0,92730.0,0.09946459]
[1767767986580,0.010789,92743.0,92730.0,0.09946459]
[1767767986772,0.010789,92746.0,92733.0,0.03003652]
[1767767986977,0.010789,92746.0,92734.0,0.09946459]
[1767767988386,0.010789,92746.0,92738.0,0.09946459]
[1767767988783,0.010789,92746.0,92734.0,0.02904275]
[1767767989181,0.010789,92744.0,92734.0,0.02904275]
[1767767989686,0.010789,92744.0,92734.0,0.12850734]
[1767767990684,0.010789,92741.0,92729.0,0.02809625]
[1767767990890,0.05143224,92747.0,92728.0,0.09946459]
[1767767991189,0.05143224,92746.0,92728.0,0.09946459]
[1767767991374,0.09172,92748.0,92729.0,0.09946459]
[1767767991581,0.09172,92748.0,92729.0,0.12705949]
[1767767992288,0.09172,92748.0,92730.0,0.12705949]
[1767767993189,0.010789,92744.0,92730.0,0.12705949]
[1767767993385,0.010789,92742.0,92730.0,0.12705949]
[1767767993584,0.010789,92742.0,92731.0,0.12644961]
[1767767993790,0.010789,92740.0,92732.0,0.09946459]
[1767767993990,0.09172,92748.0,92732.0,0.09946459]
[1767767996094,0.01079,92738.0,92732.0,0.09946459]
[1767767996391,0.09172,92748.0,92732.0,0.09946459]
[1767767996593,0.09172,92748.0,92733.0,0.12554451]
[1767767997496,0.09172,92748.0,92733.0,0.09946459]
[1767767999193,0.010789,92743.0,92733.0,0.09946459]
[1767768000295,0.010789,92741.0,92733.0,0.09946459]
[1767768000491,0.09172,92748.0,92733.0,0.09946459]
[1767768000690,0.010789,92741.0,92733.0,0.09946459]
[1767768002197,0.010789,92745.0,92733.0,0.09946459]
[1767768002394,0.09934949,92754.0,92730.0,0.11702065]
[1767768002395,0.010788,92754.0,92745.0,0.12372987]
[1767768002602,0.10672,92761.0,92750.0,0.0132583]
[1767768002794,0.010787,92757.0,92750.0,0.10469367]
[1767768003098,0.010787,92757.0,92750.0,0.0132583]
[1767768003297,0.010787,92757.0,92750.0,0.01358313]
[1767768003509,0.010787,92757.0,92749.0,0.09968357]
[1767768003798,0.010788,92753.0,92747.0,0.09143537]
[1767768004098,0.010788,92751.0,92740.0,0.09143537]
[1767768005200,0.10672,92761.0,92730.0,0.09143537]
[1767768005201,0.010789,92742.0,92730.0,0.09143537]
[1767768005393,0.09143537,92750.0,92730.0,0.09143537]
[1767768005892,0.09143537,92750.0,92733.0,0.15060872]
[1767768006084,0.09143537,92750.0,92733.0,0.15288119]
[1767768006288,0.010789,92742.0,92733.0,0.15288119]
[1767768006491,0.09143537,92750.0,92733.0,0.15288119]
[1767768007194,0.010789,92742.0,92733.0,0.15288119]
[1767768007398,0.09143537,92750.0,92733.0,0.16627674]
[1767768008100,0.04939233,92753.0,92733.0,0.16627674]
[1767768008398,0.010789,92742.0,92734.0,0.00438802]
[1767768008595,0.04939233,92753.0,92734.0,0.00438802]
[1767768009598,0.14710083,92753.0,92734.0,0.00438802]
[1767768010101,0.010789,92744.0,92734.0,0.00438802]
[1767768010401,0.04939233,92752.0,92733.0,0.16814902]
[1767768011198,0.010789,92742.0,92733.0,0.16814902]
[1767768011400,0.04939233,92752.0,92733.0,0.16814902]
[1767768011605,0.0977085,92753.0,92734.0,0.00364471]
[1767768012605,0.1893885,92753.0,92734.0,0.00364471]
[1767768013208,0.010789,92744.0,92734.0,0.00364471]
[1767768013506,0.1893885,92753.0,92734.0,0.00364471]
[1767768013692,0.010789,92744.0,92734.0,0.00364471]
[1767768013893,0.1893885,92753.0,92734.0,0.00364471]
[1767768014193,0.23878083,92753.0,92734.0,0.00364471]
[1767768014488,0.010789,92744.0,92734.0,0.00364471]
[1767768018409,0.010789,92747.0,92734.0,0.00364471]
[1767768020911,0.04939233,92747.0,92733.0,0.16400427]
[1767768021206,0.010789,92742.0,92733.0,0.16400427]
[1767768021402,0.04939233,92746.0,92733.0,0.16400427]
[1767768023210,0.010789,92742.0,92733.0,0.16400427]
[1767768023516,0.04939233,92746.0,92733.0,0.16400427]
[1767768024114,0.010789,92742.0,92733.0,0.16400427]
[1767768024411,0.04939233,92746.0,92733.0,0.16400427]
[1767768025013,0.04939233,92738.0,92719.0,0.09168]
[1767768025314,0.04939233,92730.0,92719.0,0.06006078]
[1767768025520,0.04939233,92730.0,92711.0,0.2528833]
[1767768025521,0.04939233,92730.0,92711.0,0.26623092]
[1767768025814,0.04939233,92730.0,92711.0,0.10502762]
[1767768026025,0.04939233,92730.0,92712.0,0.1612033]
[1767768026217,0.010791,92727.0,92712.0,0.25985755]
[1767768026518,0.04939233,92730.0,92712.0,0.25985755]
[1767768026815,0.0977085,92731.0,92712.0,0.25985755]
[1767768027010,0.010791,92725.0,92712.0,0.25985755]
[1767768027317,0.0977085,92731.0,92712.0,0.25985755]
[1767768027513,0.010791,92728.0,92713.0,0.01130474]
[1767768027714,0.0977085,92731.0,92713.0,0.01130474]
[1767768028113,0.010791,92729.0,92713.0,0.11005101]
[1767768029817,0.010791,92729.0,92707.0,0.010793]
[1767768029818,0.04939233,92725.0,92702.0,0.01575653]
[1767768030017,0.04939233,92725.0,92670.0,0.0705]
[1767768030018,0.09143537,92710.0,92687.0,0.01575653]
[1767768030211,0.15789383,92712.0,92701.0,0.1616533]
[1767768030212,0.1085015,92712.0,92701.0,0.1616533]
[1767768030413,0.010793,92712.0,92696.0,0.01562733]
[1767768030613,0.010793,92712.0,92701.0,0.1616533]
[1767768030915,0.010793,92712.0,92697.0,0.17728063]
[1767768031118,0.010793,92710.0,92697.0,0.01562733]
[1767768031318,0.010793,92710.0,92698.0,0.16181308]
[1767768031823,0.00011181,92711.0,92697.0,0.01562733]
[1767768032124,0.010793,92710.0,92697.0,0.01562733]
[1767768032625,0.00011181,92711.0,92698.0,0.0162338]
[1767768033220,0.00011181,92711.0,92699.0,0.01606631]
[1767768033430,0.00011181,92711.0,92700.0,0.09143537]
[1767768033624,0.00011181,92711.0,92699.0,0.01606631]
[1767768035324,0.00011181,92711.0,92695.0,0.0874184]
[1767768035618,0.05591951,92711.0,92690.0,0.10714819]
[1767768035823,0.010793,92710.0,92690.0,0.10714819]
[1767768036123,0.010793,92710.0,92691.0,0.17809961]
[1767768036319,0.010793,92710.0,92695.0,0.0156723]
[1767768036526,0.0558077,92716.0,92703.0,0.0156723]
[1767768036527,0.09172,92716.0,92703.0,0.0156723]
[1767768036830,0.0558077,92724.0,92704.0,0.0156723]
[1767768037125,0.09172,92723.0,92709.0,0.0156723]
[1767768037625,0.09172,92723.0,92691.0,0.09559225]
[1767768037626,0.010792,92717.0,92705.0,0.01513391]
[1767768037826,0.010792,92715.0,92708.0,9.1e-07]
[1767768038320,0.010792,92715.0,92707.0,0.0923484]
[1767768039030,0.010793,92712.0,92700.0,0.18378377]
[1767768039327,0.010793,92710.0,92698.0,0.09172]
[1767768039515,0.010792,92714.0,92698.0,0.1840684]
[1767768039722,0.010792,92714.0,92700.0,0.09143537]
[1767768039922,0.010792,92714.0,92701.0,0.00088353]
[1767768041122,0.010792,92714.0,92700.0,0.18378377]
[1767768042029,0.010792,92715.0,92700.0,0.18378377]
[1767768048036,0.010792,92715.0,92701.0,0.0923484]
[1767768050340,0.010792,92722.0,92701.0,0.1031424]
[1767768050541,0.102512,92722.0,92706.0,0.0923484]
[1767768051035,0.010792,92722.0,92710.0,0.09143537]
[1767768051242,0.010792,92718.0,92700.0,0.09143537]
[1767768051439,0.18961859,92723.0,92700.0,0.09143537]
[1767768051641,0.0558077,92720.0,92700.0,0.18378377]
[1767768051946,0.14724307,92720.0,92700.0,0.0923484]
[1767768052137,0.010792,92716.0,92700.0,0.0923484]
[1767768053944,0.010793,92712.0,92700.0,0.0923484]
[1767768054645,0.010793,92712.0,92700.0,0.18378377]
[1767768054843,0.010793,92712.0,92701.0,0.0923484]
[1767768065650,0.010793,92710.0,92698.0,0.05974797]
[1767768065846,0.010793,92708.0,92688.0,0.09131766]
[1767768066245,0.010793,92708.0,92692.0,0.16138735]
[1767768066443,0.010793,92708.0,92692.0,0.25270501]
[1767768066644,0.010793,92708.0,92692.0,0.09131766]
[1767768066951,0.010793,92711.0,92694.0,0.09131766]
[1767768067335,0.010793,92711.0,92696.0,0.09131766]
[1767768068855,0.09172,92713.0,92696.0,0.09131766]
[1767768070254,0.010793,92710.0,92696.0,0.09131766]
[1767768070555,0.102512,92713.0,92696.0,0.09131766]
[1767768074360,0.09172,92717.0,92696.0,0.10211166]
[1767768075056,0.0951411,92723.0,92696.0,0.10211166]
[1767768075262,0.09172,92722.0,92696.0,0.10211166]
[1767768075463,0.09172,92721.0,92696.0,0.10211166]
[1767768076164,0.010792,92718.0,92696.0,0.10211166]
[1767768077251,0.010792,92721.0,92698.0,0.10211166]
[1767768077463,0.010791,92727.0,92706.0,0.09131766]
[1767768077656,0.00215683,92729.0,92707.0,0.010793]
[1767768077867,0.01079,92736.0,92713.0,0.09131766]
[1767768078065,0.09172,92735.0,92713.0,0.09131766]
[1767768078258,0.0951411,92734.0,92713.0,0.09131766]
[1767768078575,0.1059311,92731.0,92708.0,0.09131766]
[1767768078866,0.1059311,92731.0,92709.0,0.16203297]
[1767768079259,0.1059321,92729.0,92709.0,0.16203297]
[1767768080068,0.010791,92727.0,92709.0,0.16203297]
[1767768081265,0.04951621,92726.0,92709.0,0.16203297]
[1767768081465,0.0951411,92721.0,92709.0,0.16203297]
[1767768081672,0.0951411,92714.0,92700.0,0.09172]
[1767768081970,0.0951411,92714.0,92710.0,4.8e-07]
[1767768082264,0.0951411,92714.0,92700.0,0.09172]
[1767768082265,0.0951411,92714.0,92711.0,0.16104298]
[1767768082465,0.14465731,92713.0,92700.0,0.09172]
[1767768082672,0.0951411,92708.0,92702.0,0.16104298]
[1767768082872,0.010793,92712.0,92693.0,0.09172]
[1767768083170,0.010793,92712.0,92698.0,0.16104298]
[1767768083471,0.010793,92712.0,92693.0,0.15183267]
[1767768083671,0.010793,92712.0,92699.0,0.16224138]
[1767768083871,0.010793,92712.0,92694.0,0.16224138]
[1767768084173,0.010793,92712.0,92693.0,0.15183267]
[1767768084357,0.010793,92712.0,92694.0,0.16137479]
[1767768085369,0.0951411,92714.0,92694.0,0.16137479]
[1767768086864,0.010793,92713.0,92694.0,0.16137479]
[1767768090474,0.010793,92711.0,92694.0,0.16137479]
[1767768091074,0.010793,92711.0,92699.0,0.00215753]
[1767768091471,0.010793,92711.0,92700.0,0.16078969]
[1767768094375,0.14864042,92714.0,92700.0,0.16078969]
[1767768094582,0.09463931,92710.0,92700.0,0.16078969]
[1767768096179,0.010793,92709.0,92700.0,0.16078969]
[1767768099680,0.14813863,92707.0,92700.0,0.16078969]
[1767768099887,0.09463931,92706.0,92700.0,0.16078969]
[1767768100181,0.010793,92709.0,92700.0,0.16078969]
[1767768102883,0.010793,92713.0,92700.0,0.16078969]
[1767768103379,0.102513,92713.0,92700.0,0.16078969]
[1767768104181,0.09463931,92726.0,92701.0,0.09365936]
[1767768104383,0.010792,92721.0,92701.0,0.09365936]
[1767768104687,0.010792,92719.0,92701.0,0.09365936]
[1767768104882,0.09463931,92726.0,92701.0,0.09365936]
[1767768105187,0.09172,92721.0,92701.0,0.09365936]
[1767768106284,0.09172,92721.0,92703.0,0.09288362]
[1767768107982,0.09172,92722.0,92703.0,0.09288362]
[1767768111491,0.010792,92721.0,92703.0,0.09288362]
[1767768111697,0.010792,92719.0,92699.0,0.00215753]
[1767768111996,0.010792,92719.0,92700.0,0.16255297]
[1767768113598,0.010792,92717.0,92700.0,0.16255297]
[1767768114794,0.010792,92720.0,92700.0,0.16255297]
[1767768114989,0.010792,92720.0,92700.0,0.25446455]
[1767768116794,0.09172,92721.0,92701.0,0.09212826]
[1767768117297,0.010791,92723.0,92701.0,0.09212826]
[1767768117298,0.010791,92723.0,92701.0,0.10292226]
[1767768117492,0.09172,92722.0,92701.0,0.10292226]
[1767768118596,0.09172,92722.0,92710.0,0.09147366]
[1767768118797,0.010792,92721.0,92710.0,0.09147366]
[1767768120597,0.010792,92721.0,92701.0,0.09212826]
[1767768135100,0.09463931,92727.0,92701.0,0.09212826]
[1767768135101,0.010791,92724.0,92710.0,0.09147366]
[1767768135305,0.0916658,92733.0,92714.0,0.09147366]
[1767768135611,0.09172,92734.0,92720.0,0.09147366]
[1767768136506,0.010791,92730.0,92720.0,0.09147366]
[1767768136706,0.010791,92730.0,92715.0,0.09229978]
[1767768137501,0.0916658,92727.0,92709.0,0.09172]
[1767768137809,0.0916658,92718.0,92708.0,0.09172]
[1767768138009,0.0916658,92718.0,92704.0,0.05903582]
[1767768138209,0.010791,92722.0,92705.0,0.16256338]
[1767768138620,0.010791,92722.0,92702.0,0.09172]
[1767768138621,0.010791,92722.0,92703.0,0.16124068]
[1767768138812,0.010791,92722.0,92702.0,0.09172]
[1767768139298,0.010791,92722.0,92703.0,0.16124068]
[1767768141009,0.010791,92728.0,92710.0,0.09147366]
[1767768141203,0.010791,92728.0,92710.0,0.18253553]
[1767768142812,0.0916658,92729.0,92710.0,0.18253553]
[1767768143010,0.10251,92731.0,92718.0,0.09147366]
[1767768143602,0.10251,92731.0,92711.0,0.09093908]
[1767768147410,0.1941758,92731.0,92711.0,0.09093908]
[1767768148813,0.1024558,92731.0,92720.0,0.09147366]
[1767768149012,0.10251,92731.0,92711.0,0.09093908]
[1767768150308,0.010791,92729.0,92711.0,0.09093908]
[1767768154719,0.01079,92732.0,92719.0,0.09147366]
[1767768155021,0.01079,92732.0,92702.0,0.09172]
[1767768155022,0.01079,92732.0,92720.0,0.09147366]
[1767768155908,0.010791,92730.0,92720.0,0.09147366]
[1767768156112,0.010791,92728.0,92720.0,0.09147366]
[1767768156413,0.010791,92728.0,92715.0,0.09008964]
[1767768158117,0.010791,92728.0,92718.0,0.09147366]
[1767768159926,0.22997762,92736.0,92718.0,0.09147366]
[1767768160924,0.01079,92733.0,92718.0,0.09147366]
[1767768161328,0.01079,92733.0,92718.0,0.17852501]
[1767768166016,0.10677899,92736.0,92718.0,0.17852501]
[1767768166511,0.015,92739.0,92726.0,0.09147366]
[1767768166722,0.09172,92742.0,92729.0,0.09147366]
[1767768167316,0.09172,92742.0,92723.0,0.08927966]
[1767768167317,0.18770899,92742.0,92723.0,0.08927966]
[1767768168016,0.09598899,92742.0,92723.0,0.08927966]
[1767768168217,0.102509,92741.0,92723.0,0.08927966]
[1767768169527,0.19849799,92741.0,92720.0,0.09147366]
[1767768170627,0.09598899,92740.0,92720.0,0.09147366]
[1767768171428,0.010789,92739.0,92720.0,0.09147366]
[1767768176530,0.01079,92737.0,92720.0,0.09147366]
[1767768178637,0.01079,92735.0,92718.0,0.17743672]
[1767768181132,0.09598899,92740.0,92718.0,0.17743672]
[1767768181432,0.09129867,92738.0,92718.0,0.17743672]
[1767768181630,0.09133988,92730.0,92718.0,0.08776588]
[1767768181817,0.010791,92723.0,92696.0,0.93084]
[1767768182019,0.10213088,92726.0,92702.0,0.08871701]
[1767768182332,0.10213088,92726.0,92713.0,0.16101023]
[1767768182530,0.010791,92730.0,92714.0,0.08871701]
[1767768183026,0.010791,92728.0,92714.0,0.08871701]
[1767768183220,0.010791,92728.0,92714.0,0.08809959]
[1767768183423,0.010791,92728.0,92709.0,0.0886633]
[1767768183739,0.010791,92728.0,92713.0,0.16262724]
[1767768185926,0.010791,92728.0,92713.0,0.24945888]
[1767768191738,0.010791,92723.0,92713.0,0.24945888]
[1767768192032,0.13348513,92730.0,92713.0,0.24945888]
[1767768192225,0.010791,92723.0,92713.0,0.24945888]
[1767768192430,0.13348513,92730.0,92713.0,0.24945888]
[1767768192736,0.09133988,92728.0,92713.0,8.8e-07]
[1767768192934,0.14427713,92715.0,92691.0,0.09172]
[1767768193136,0.09133988,92714.0,92691.0,0.18573343]
[1767768193336,0.09133988,92714.0,92700.0,0.16084823]
[1767768193529,0.09133988,92714.0,92695.0,0.16084823]
[1767768193728,0.09133988,92714.0,92694.0,0.16917555]
[1767768193932,0.09133988,92714.0,92701.0,0.16266953]
[1767768194139,0.09133988,92714.0,92697.0,0.16266953]
[1767768194140,0.010792,92715.0,92696.0,0.09401343]
[1767768194637,0.010792,92715.0,92699.0,0.16266953]
[1767768194826,0.010792,92715.0,92697.0,0.16266953]
[1767768195027,0.010792,92715.0,92700.0,0.16078977]
[1767768195437,0.010792,92715.0,92697.0,0.16078977]
[1767768195632,0.010792,92715.0,92696.0,0.17916009]
[1767768195838,0.010792,92715.0,92701.0,0.16080032]
[1767768196139,0.010792,92715.0,92696.0,0.17916009]
[1767768196338,0.010792,92715.0,92702.0,0.16080032]
[1767768196727,0.010792,92715.0,92701.0,0.16080032]
[1767768196929,0.010792,92715.0,92697.0,0.09294053]
[1767768197238,0.010792,92715.0,92699.0,0.16224612]
[1767768197641,0.010792,92715.0,92697.0,0.09294053]
[1767768198137,0.010792,92715.0,92698.0,0.255523]
[1767768198536,0.010792,92715.0,92698.0,0.09358859]
[1767768198932,0.010792,92715.0,92699.0,0.16211195]
[1767768199444,0.010793,92713.0,92699.0,0.16211195]
[1767768203228,0.10213288,92710.0,92696.0,0.08546519]
[1767768203434,0.09133988,92707.0,92694.0,0.015]
[1767768203737,0.010794,92704.0,92694.0,0.015]
[1767768203937,0.09133988,92707.0,92694.0,0.015]
[1767768204748,0.09133988,92707.0,92694.0,0.10106367]
[1767768205134,0.010794,92704.0,92694.0,0.10106367]
[1767768205435,0.09133988,92707.0,92694.0,0.10106367]
[1767768205642,0.010794,92704.0,92694.0,0.10106367]
[1767768207946,0.09133988,92707.0,92694.0,0.10106367]
[1767768208244,0.010794,92704.0,92694.0,0.10106367]
[1767768208551,0.09133988,92707.0,92694.0,0.10106367]
[1767768209144,0.010794,92704.0,92694.0,0.10106367]
[1767768209339,0.09133988,92707.0,92694.0,0.10106367]
[1767768209758,0.04214525,92711.0,92694.0,0.10106367]
[1767768210050,0.09133988,92713.0,92694.0,0.10106367]
[1767768210352,0.010793,92707.0,92694.0,0.10106367]
[1767768211254,0.09133988,92713.0,92694.0,0.10106367]
[1767768211749,0.010793,92708.0,92694.0,0.10106367]
[1767768211943,0.010792,92714.0,92694.0,0.19759301]
[1767768212240,0.010793,92711.0,92695.0,0.09652934]
[1767768216456,0.102513,92711.0,92695.0,0.09652934]
[1767768217560,0.09743101,92719.0,92695.0,0.09652934]
[1767768217762,0.09172,92718.0,92695.0,0.09652934]
[1767768218454,0.09743101,92720.0,92695.0,0.09652934]
[1767768218660,0.09172,92719.0,92695.0,0.09652934]
[1767768219857,0.18915101,92719.0,92695.0,0.09652934]
[1767768220259,0.010792,92715.0,92695.0,0.09652934]
[1767768223872,0.102512,92719.0,92695.0,0.09652934]
[1767768224769,0.010792,92719.0,92696.0,0.010794]
[1767768225072,0.09172,92718.0,92697.0,0.0969277]
[1767768225465,0.102512,92718.0,92697.0,0.0969277]
[1767768225771,0.010792,92716.0,92697.0,0.0969277]
[1767768230476,0.09172,92718.0,92697.0,0.0969277]
[1767768234375,0.102512,92719.0,92697.0,0.0969277]
[1767768234575,0.010792,92717.0,92697.0,0.0969277]
[1767768238780,0.09172,92719.0,92697.0,0.0969277]
[1767768240482,0.09172,92719.0,92700.0,0.09148352]
[1767768241771,0.010792,92718.0,92700.0,0.09148352]
[1767768245686,0.010792,92718.0,92700.0,0.18471842]
[1767768247685,0.010792,92718.0,92701.0,0.0932349]
[1767768248083,0.010792,92721.0,92701.0,0.0932349]
[1767768248289,0.09172,92721.0,92708.0,0.09148352]
[1767768248488,0.09172,92724.0,92708.0,0.09148352]
[1767768249283,0.010792,92722.0,92708.0,0.09148352]
[1767768249589,0.010792,92722.0,92705.0,0.0932349]
[1767768249892,0.010792,92718.0,92710.0,0.09148352]
[1767768250079,0.09172,92724.0,92705.0,0.0932349]
[1767768250491,0.010792,92720.0,92705.0,0.0932349]
[1767768253490,0.010791,92723.0,92705.0,0.0932349]
[1767768254282,0.010792,92720.0,92705.0,0.0932349]
[1767768259189,0.13046702,92722.0,92701.0,0.09172]
[1767768259390,0.13046702,92721.0,92701.0,0.09172]
[1767768259590,0.10566519,92721.0,92701.0,0.1849549]
[1767768261793,0.010792,92719.0,92701.0,0.1849549]
[1767768262992,0.010792,92719.0,92702.0,0.0932349]
[1767768268502,0.010792,92719.0,92709.0,0.09148352]
[1767768268699,0.09172,92725.0,92709.0,0.09148352]
[1767768269397,0.09172,92725.0,92702.0,0.0932349]
[1767768270209,0.010792,92721.0,92702.0,0.0932349]
[1767768271109,0.010792,92721.0,92710.0,0.09148352]
[1767768271902,0.18645588,92725.0,92702.0,0.0932349]
[1767768272102,0.22196314,92725.0,92702.0,0.0932349]
[1767768272502,0.13024314,92724.0,92702.0,0.0932349]
[1767768273212,0.010792,92721.0,92702.0,0.0932349]
[1767768274310,0.010792,92719.0,92702.0,0.0932349]
[1767768278916,0.13024314,92724.0,92702.0,0.0932349]
[1767768279320,0.010792,92719.0,92702.0,0.0932349]
[1767768284325,0.13024314,92724.0,92702.0,0.0932349]
[1767768285124,0.010792,92719.0,92702.0,0.0932349]
[1767768285425,0.010792,92717.0,92702.0,0.0932349]
[1767768285624,0.13024314,92721.0,92701.0,0.09172]
[1767768285827,0.010792,92716.0,92701.0,0.09172]
[1767768286025,0.13024314,92721.0,92701.0,0.09172]
[1767768287129,0.010792,92716.0,92701.0,0.09172]
[1767768287326,0.13024314,92721.0,92701.0,0.09172]
[1767768287536,0.09473588,92719.0,92701.0,0.09172]
[1767768288229,0.010792,92716.0,92701.0,0.09172]
[1767768288433,0.09473588,92719.0,92701.0,0.09172]
[1767768289234,0.10552788,92714.0,92701.0,0.09172]
[1767768289531,0.09148352,92720.0,92701.0,0.09172]
[1767768290426,0.010792,92715.0,92701.0,0.09172]
[1767768291134,0.09148352,92720.0,92695.0,0.09722243]
[1767768291327,0.010794,92702.0,92694.0,0.10106367]
[1767768291532,0.010794,92702.0,92694.0,0.09268095]
[1767768293446,0.03550726,92704.0,92694.0,0.09268095]
[1767768293843,0.09473588,92705.0,92694.0,0.09268095]
[1767768294239,0.010794,92702.0,92694.0,0.09268095]
[1767768295854,0.03550726,92708.0,92694.0,0.09268095]
[1767768296253,0.010794,92702.0,92694.0,0.09268095]
[1767768296454,0.03550726,92708.0,92694.0,0.09268095]
[1767768297043,0.010794,92700.0,92694.0,0.09268095]
[1767768297240,0.03550726,92708.0,92694.0,0.09268095]
[1767768298150,0.03550726,92707.0,92694.0,0.09268095]
[1767768299156,0.010794,92701.0,92694.0,0.09268095]
[1767768299356,0.03550726,92707.0,92694.0,0.09268095]
[1767768300055,0.010794,92701.0,92694.0,0.09268095]
[1767768300256,0.03550726,92707.0,92694.0,0.09268095]
[1767768300450,0.010794,92703.0,92694.0,0.09268095]
[1767768300652,0.010793,92713.0,92695.0,0.09298788]
[1767768300850,0.010793,92711.0,92695.0,0.09298788]
[1767768301162,0.010792,92719.0,92701.0,0.09298788]
[1767768301360,0.010792,92719.0,92709.0,0.09298788]
[1767768301651,0.010792,92717.0,92709.0,0.09298788]
[1767768301858,0.03570198,92725.0,92701.0,0.0915214]
[1767768303157,0.010792,92717.0,92701.0,0.0915214]
[1767768305657,0.010792,92715.0,92701.0,0.0915214]
[1767768305859,0.03570198,92725.0,92701.0,0.0915214]
[1767768306458,0.010792,92715.0,92701.0,0.0915214]
[1767768306757,0.03570198,92725.0,92701.0,0.0915214]
[1767768307158,0.010792,92715.0,92701.0,0.0915214]
[1767768307358,0.03570198,92725.0,92701.0,0.0915214]
[1767768309850,0.010793,92712.0,92701.0,0.0915214]
[1767768310152,0.010793,92713.0,92701.0,0.0915214]
[1767768310357,0.03570198,92722.0,92701.0,0.0915214]
[1767768310755,0.010793,92711.0,92701.0,0.0915214]
[1767768310961,0.03570198,92722.0,92701.0,0.0915214]
[1767768311261,0.010793,92712.0,92702.0,0.09172]
[1767768311561,0.03570198,92722.0,92702.0,0.09172]
[1767768311752,0.010793,92713.0,92702.0,0.09172]
[1767768311950,0.03570198,92722.0,92702.0,0.09172]
[1767768312261,0.010793,92713.0,92702.0,0.1832414]
[1767768312458,0.03570198,92722.0,92702.0,0.1832414]
[1767768313261,0.010793,92713.0,92702.0,0.1832414]
[1767768313467,0.03570198,92722.0,92702.0,0.1832414]
[1767768313758,0.03570198,92722.0,92703.0,0.0915214]
[1767768314158,0.03570198,92718.0,92702.0,0.09172]
[1767768314868,0.03570198,92721.0,92702.0,0.09172]
[1767768315363,0.03570198,92721.0,92702.0,0.1832414]
[1767768315861,0.03570198,92721.0,92702.0,0.0915214]
[1767768316064,0.03570198,92721.0,92703.0,0.09172]
[1767768316262,0.010793,92712.0,92703.0,0.09172]
[1767768316462,0.03570198,92721.0,92703.0,0.1832414]
[1767768318163,0.010793,92713.0,92703.0,0.1832414]
[1767768318363,0.03570198,92721.0,92703.0,0.1832414]